fUST/lending_fUST_20241020
["ID","MTS","AMOUNT","RATE_DAILY","PERIOD"]
[340547125,1729434652008,-3000.0,0.0001632,2]
[340547126,1729434652017,-3000.0,0.0001633,2]
[340547127,1729434652027,-3000.0,0.0001634,2]
[340547128,1729434652037,-151.0,0.0001634,2]
[340547129,1729434652047,-482.361007,0.0001634,2]
[340547130,1729434652058,-482.361007,0.0001634,2]
[340547131,1729434652068,-1000.0,0.0001634,2]
[340547132,1729434652081,-1000.0,0.0001634,2]
[340547133,1729434652091,-1000.0,0.0001634,2]
[340547134,1729434652102,-1000.0,0.0001634,2]
[340547135,1729434652114,-1000.0,0.0001634,2]
[340547136,1729434652124,-1000.0,0.0001634,2]
[340547137,1729434652134,-1000.0,0.0001634,2]
[340547138,1729434652144,-1000.0,0.0001634,2]
[340547139,1729434652154,-1000.0,0.0001634,2]
[340547140,1729434652164,-1000.0,0.0001634,2]
[340547141,1729434652174,-1000.0,0.0001634,2]
[340547142,1729434652184,-1000.0,0.0001634,2]
[340547143,1729434652194,-1000.0,0.0001634,2]
[340547144,1729434652204,-1000.0,0.0001634,2]
[340547145,1729434652214,-1000.0,0.0001634,2]
[340547146,1729434652224,-1000.0,0.0001634,2]
[340547147,1729434652234,-1000.0,0.0001634,2]
[340547148,1729434652243,-1000.0,0.0001634,2]
[340547149,1729434652253,-1000.0,0.0001634,2]
[340547150,1729434652263,-1000.0,0.0001634,2]
[340547151,1729434652274,-1000.0,0.0001634,2]
[340547152,1729434652285,-1000.0,0.0001634,2]
[340547153,1729434652297,-1000.0,0.0001634,2]
[340547154,1729434652306,-1000.0,0.0001634,2]
[340547155,1729434652316,-1000.0,0.0001634,2]
[340547156,1729434652327,-1000.0,0.0001634,2]
[340547157,1729434652336,-1000.0,0.0001634,2]
[340547158,1729434652346,-1000.0,0.0001634,2]
[340547159,1729434652356,-1000.0,0.0001634,2]
[340547160,1729434652366,-1000.0,0.0001634,2]
[340547161,1729434652375,-1000.0,0.0001634,2]
[340547162,1729434652386,-1000.0,0.0001634,2]
[340547163,1729434652397,-1000.0,0.0001634,2]
[340547164,1729434652407,-1000.0,0.0001634,2]
[340547165,1729434652417,-1000.0,0.0001634,2]
[340547166,1729434652427,-1000.0,0.0001634,2]
[340547167,1729434652437,-1000.0,0.0001634,2]
[340547168,1729434652447,-1000.0,0.0001634,2]
[340547169,1729434652457,-1000.0,0.0001634,2]
[340547170,1729434652467,-1000.0,0.0001634,2]
[340547171,1729434652477,-1000.0,0.0001634,2]
[340547172,1729434652487,-1000.0,0.0001634,2]
[340547173,1729434652498,-1000.0,0.0001634,2]
[340547174,1729434652508,-1000.0,0.0001634,2]
[340547175,1729434652518,-1000.0,0.0001634,2]
[340547176,1729434652528,-1000.0,0.0001634,2]
[340547177,1729434652536,-1000.0,0.0001634,2]
[340547178,1729434652547,-1000.0,0.0001634,2]
[340547179,1729434652558,-1000.0,0.0001634,2]
[340547180,1729434652568,-1000.0,0.0001634,2]
[340547181,1729434652578,-1000.0,0.0001634,2]
[340547182,1729434652588,-1000.0,0.0001634,2]
[340547183,1729434652597,-1000.0,0.0001634,2]
[340547184,1729434652607,-1000.0,0.0001634,2]
[340547185,1729434652620,-1000.0,0.0001634,2]
[340547186,1729434652630,-1000.0,0.0001634,2]
[340547187,1729434652639,-1000.0,0.0001634,2]
[340547188,1729434652649,-1000.0,0.0001634,2]
[340547189,1729434652659,-1000.0,0.0001634,2]
[340547190,1729434652669,-1000.0,0.0001634,2]
[340547191,1729434652679,-1000.0,0.0001634,2]
[340547192,1729434652688,-1000.0,0.0001634,2]
[340547193,1729434652698,-1000.0,0.0001634,2]
[340547194,1729434652707,-1000.0,0.0001634,2]
[340547195,1729434652717,-1000.0,0.0001634,2]
[340547196,1729434652726,-1000.0,0.0001634,2]
[340547197,1729434652736,-1000.0,0.0001634,2]
[340547198,1729434652746,-1000.0,0.0001634,2]
[340547199,1729434652755,-1000.0,0.0001634,2]
[340547200,1729434652765,-1000.0,0.0001634,2]
[340547201,1729434652775,-1000.0,0.0001634,2]
[340547202,1729434652784,-127.89897926,0.0001634,2]
[340547203,1729434653275,-872.10102074,0.0001634,2]
[340547204,1729434653286,-1000.0,0.0001634,2]
[340547205,1729434653295,-1000.0,0.0001634,2]
[340547206,1729434653304,-1000.0,0.0001634,2]
[340547207,1729434653313,-1000.0,0.0001634,2]
[340547208,1729434653322,-1000.0,0.0001634,2]
[340547209,1729434653332,-1000.0,0.0001634,2]
[340547210,1729434653341,-1000.0,0.0001634,2]
[340547211,1729434653351,-1000.0,0.0001634,2]
[340547212,1729434653360,-1000.0,0.0001634,2]
[340547213,1729434653370,-1000.0,0.0001634,2]
[340547214,1729434653379,-535.33553152,0.0001634,2]
[340547215,1729434653389,-674.042134,0.0001634,2]
[340547216,1729434653398,-674.042134,0.0001634,2]
[340547217,1729434653407,-2500.0,0.0001634,2]
[340547218,1729434653416,-151.0,0.0001635,2]
[340547219,1729434653426,-374.026534,0.0001635,2]
[340547220,1729434653435,-374.026534,0.0001635,2]
[340547221,1729434653444,-239.868,0.0001635,2]
[340547222,1729434653454,-239.868,0.0001635,2]
[340547223,1729434653463,-0.58655928,0.0001635,2]
[340547224,1729434653927,-1200.0,0.00012136,2]
[340547225,1729434653937,-305.51999321,0.00013598,2]
[340547226,1729434653946,-1009.51361077,0.00013657,2]
[340547227,1729434653956,-1108.0,0.00015136,2]
[340547228,1729434653966,-2999.41344072,0.0001635,2]
[340547229,1729434653976,-3000.0,0.0001636,2]
[340547230,1729434653985,-151.0,0.0001637,2]
[340547231,1729434653994,-3000.0,0.0001637,2]
[340547232,1729434654004,-151.0,0.0001637,2]
[340547233,1729434654013,-151.0,0.0001637,2]
[340547234,1729434654022,-151.0,0.0001637,2]
[340547235,1729434654032,-151.0,0.0001637,2]
[340547236,1729434654042,-151.0,0.0001637,2]
[340547237,1729434654052,-151.0,0.0001637,2]
[340547238,1729434654063,-151.0,0.0001637,2]
[340547239,1729434654076,-232.134523,0.0001637,2]
[340547240,1729434654087,-232.134523,0.0001637,2]
[340547241,1729434654097,-706.297685,0.0001637,2]
[340547242,1729434654106,-706.297685,0.0001637,2]
[340547243,1729434654116,-238.650396,0.0001637,2]
[340547244,1729434654126,-238.650396,0.0001637,2]
[340547245,1729434654136,-3000.0,0.0001638,2]
[340547246,1729434654146,-151.0,0.0001639,2]
[340547247,1729434654156,-3000.0,0.0001639,2]
[340547248,1729434654166,-151.0,0.0001639,2]
[340547249,1729434654175,-151.0,0.0001639,2]
[340547250,1729434654185,-151.0,0.0001639,2]
[340547251,1729434654195,-151.0,0.0001639,2]
[340547252,1729434654206,-151.0,0.0001639,2]
[340547253,1729434654216,-151.0,0.0001639,2]
[340547254,1729434654226,-302.0,0.0001639,2]
[340547255,1729434654236,-3000.0,0.000164,2]
[340547256,1729434654246,-3000.0,0.0001641,2]
[340547257,1729434654256,-3000.0,0.0001642,2]
[340547258,1729434654267,-3000.0,0.0001643,2]
[340547259,1729434654277,-151.0,0.0001643,2]
[340547260,1729434654286,-151.0,0.0001643,2]
[340547261,1729434654296,-151.0,0.0001643,2]
[340547262,1729434654306,-151.0,0.0001643,2]
[340547263,1729434654316,-289.850254,0.0001643,2]
[340547264,1729434654326,-289.850254,0.0001643,2]
[340547265,1729434654335,-183.5,0.00016438,2]
[340547266,1729434654345,-1389.115012,0.00016438,2]
[340547267,1729434654353,-1389.115012,0.00016438,2]
[340547268,1729434654363,-1389.115012,0.00016438,2]
[340547269,1729434654373,-1389.115012,0.00016438,2]
[340547270,1729434654382,-1389.115012,0.00016438,2]
[340547271,1729434654406,-1389.115012,0.00016438,2]
[340547272,1729434654415,-1389.115012,0.00016438,2]
[340547273,1729434654425,-1389.115012,0.00016438,2]
[340547274,1729434654434,-1389.115012,0.00016438,2]
[340547275,1729434654444,-1389.115012,0.00016438,2]
[340547276,1729434654453,-1389.115012,0.00016438,2]
[340547277,1729434654462,-1389.115012,0.00016438,2]
[340547278,1729434654472,-151.0,0.00016438,2]
[340547279,1729434654482,-151.0,0.00016438,2]
[340547280,1729434654492,-151.0,0.00016438,2]
[340547281,1729434654502,-151.0,0.00016438,2]
[340547282,1729434654511,-151.0,0.00016438,2]
[340547283,1729434654520,-3000.0,0.0001644,2]
[340547284,1729434654530,-3000.0,0.0001645,2]
[340547285,1729434654539,-500.0,0.00016455,2]
[340547286,1729434654549,-3000.0,0.0001646,2]
[340547287,1729434654559,-3000.0,0.0001647,2]
[340547288,1729434654569,-244.967259,0.0001647,2]
[340547289,1729434654579,-438.952912,0.0001647,2]
[340547290,1729434654588,-283.319738,0.0001647,2]
[340547291,1729434654598,-244.967259,0.0001647,2]
[340547292,1729434654607,-438.952912,0.0001647,2]
[340547293,1729434654617,-283.319738,0.0001647,2]
[340547294,1729434654627,-500.0,0.00016475,2]
[340547295,1729434654637,-603.29975397,0.00016475,2]
[340547296,1729434654647,-219.605306,0.0001648,2]
[340547297,1729434654657,-219.605306,0.0001648,2]
[340547298,1729434654666,-172.64398542,0.0001648,2]
[340547299,1729434654677,-3000.0,0.0001648,2]
[340547300,1729434654687,-151.0,0.0001648,2]
[340547301,1729434654697,-151.0,0.0001648,2]
[340547302,1729434654706,-3000.0,0.0001649,2]
[340547303,1729434654716,-150.0,0.000165,2]
[340547304,1729434654726,-3000.0,0.000165,2]
[340547305,1729434654736,-3000.0,0.0001651,2]
[340547306,1729434654746,-3000.0,0.0001652,2]
[340547307,1729434654756,-3000.0,0.0001653,2]
[340547308,1729434654766,-151.0,0.0001654,2]
[340547309,1729434654777,-246.804703,0.0001654,2]
[340547310,1729434654787,-246.804703,0.0001654,2]
[340547311,1729434654797,-3000.0,0.0001654,2]
[340547312,1729434654807,-500.95590921,0.0001655,2]
[340547313,1729434654817,-151.0,0.0001655,2]
[340547314,1729434654827,-151.0,0.0001655,2]
[340547315,1729434654838,-299.95391,0.0001655,2]
[340547316,1729434654848,-1389.115012,0.0001655,2]
[340547317,1729434654858,-1389.115012,0.0001655,2]
[340547318,1729434654868,-3000.0,0.0001655,2]
[340547319,1729434654878,-3000.0,0.0001656,2]
[340547320,1729434654889,-500.0,0.00016564,2]
[340547321,1729434654899,-151.0,0.0001657,2]
[340547322,1729434654908,-3000.0,0.0001657,2]
[340547323,1729434654919,-3000.0,0.0001658,2]
[340547324,1729434654931,-3000.0,0.0001659,2]
[340547325,1729434654941,-151.0,0.0001659,2]
[340547326,1729434654950,-482.361007,0.0001659,2]
[340547327,1729434654959,-482.361007,0.0001659,2]
[340547328,1729434654969,-674.042134,0.0001659,2]
[340547329,1729434654979,-674.042134,0.0001659,2]
[340547330,1729434654988,-3000.0,0.000166,2]
[340547331,1729434654998,-3000.0,0.0001661,2]
[340547332,1729434655007,-151.0,0.0001661,2]
[340547333,1729434655016,-151.0,0.0001661,2]
[340547334,1729434655026,-151.0,0.0001661,2]
[340547335,1729434655035,-151.0,0.0001661,2]
[340547336,1729434655045,-151.0,0.0001661,2]
[340547337,1729434655054,-151.0,0.0001661,2]
[340547338,1729434655064,-230.9268,0.0001661,2]
[340547339,1729434655077,-151.0,0.0001661,2]
[340547340,1729434655087,-232.134523,0.0001661,2]
[340547341,1729434655096,-232.134523,0.0001661,2]
[340547342,1729434655106,-706.297685,0.0001661,2]
[340547343,1729434655116,-706.297685,0.0001661,2]
[340547344,1729434655126,-238.650396,0.0001661,2]
[340547345,1729434655136,-238.650396,0.0001661,2]
[340547346,1729434655146,-151.0,0.0001662,2]
[340547347,1729434655157,-374.026534,0.0001662,2]
[340547348,1729434655167,-374.026534,0.0001662,2]
[340547349,1729434655177,-239.868,0.0001662,2]
[340547350,1729434655186,-239.868,0.0001662,2]
[340547351,1729434655196,-3000.0,0.0001662,2]
[340547352,1729434655206,-3000.0,0.0001663,2]
[340547353,1729434655216,-151.0,0.0001664,2]
[340547354,1729434655226,-151.0,0.0001664,2]
[340547355,1729434655236,-4041.106846,0.0001664,2]
[340547356,1729434655246,-151.0,0.0001664,2]
[340547357,1729434655256,-151.0,0.0001664,2]
[340547358,1729434655265,-151.0,0.0001664,2]
[340547359,1729434655276,-151.0,0.0001664,2]
[340547360,1729434655286,-151.0,0.0001664,2]
[340547361,1729434655296,-151.0,0.0001664,2]
[340547362,1729434655307,-3470.00061426,0.000167,2]
[340547363,1729434655317,-183.5,0.00016712,2]
[340547364,1729434655327,-1000.0,0.00016729,2]
[340547365,1729434655336,-1195.05100978,0.00016738,2]
[340547366,1729434655346,-1000.0,0.00016749,2]
[340547367,1729434655356,-151.0,0.00016749,2]
[340547368,1729434655366,-151.0,0.00016749,2]
[340547369,1729434655376,-151.0,0.00016749,2]
[340547370,1729434655386,-151.0,0.00016749,2]
[340547371,1729434655396,-289.850254,0.00016749,2]
[340547372,1729434655406,-289.850254,0.00016749,2]
[340547373,1729434655416,-150.112233,0.000168,2]
[340547374,1729434655426,-1000.0,0.00016838,2]
[340547375,1729434655436,-500.0,0.00016861,2]
[340547376,1729434655446,-3271.0,0.00016861,2]
[340547377,1729434655456,-1013.40051427,0.00016888,2]
[340547378,1729434655466,-3000.0,0.00016899,2]
[340547379,1729434655475,-300.0,0.000169,6]
[340547380,1729434655486,-443.82820826,0.00016961,2]
[340547381,1729434655496,-979.4,0.00016986,2]
[340547382,1729434655506,-183.5,0.00016986,2]
[340547383,1729434655516,-1627.44746004,0.00017129,2]
[340547384,1729434655526,-1500.0,0.0001715,2]
[340547385,1729434655538,-1500.0,0.00017238,2]
[340547386,1729434655549,-183.5,0.0001726,2]
[340547387,1729434655559,-150.112233,0.000174,2]
[340547388,1729434655569,-880.53234767,0.00017409,2]
[340547389,1729434655579,-3271.0,0.00017409,2]
[340547390,1729434655590,-3500.0,0.00017493,2]
[340547391,1729434655598,-244.967259,0.00017528,2]
[340547392,1729434655608,-438.952912,0.00017528,2]
[340547393,1729434655618,-283.319738,0.00017528,2]
[340547394,1729434655627,-244.967259,0.00017528,2]
[340547395,1729434655637,-438.952912,0.00017528,2]
[340547396,1729434655646,-283.319738,0.00017528,2]
[340547397,1729434655656,-183.5,0.00017534,2]
[340547398,1729434655665,-14453.85169264,0.00017556,2]
[340547399,1729434655675,-219.605306,0.00017577,2]
[340547400,1729434655684,-219.605306,0.00017577,2]
[340547401,1729434655694,-151.0,0.00017577,2]
[340547402,1729434655704,-151.0,0.00017577,2]
[340547403,1729434655713,-250.0,0.00017592,2]
[340547404,1729434655723,-2008.5178482,0.000176,2]
[340547405,1729434655733,-1152.0,0.00017614,2]
[340547406,1729434655742,-2000.0,0.00017618,2]
[340547407,1729434655752,-224.0,0.0001762,2]
[340547408,1729434655761,-2000.0,0.00017706,2]
[340547409,1729434655771,-726.0,0.00017767,2]
[340547410,1729434655781,-979.4,0.00017808,2]
[340547411,1729434655790,-1389.115012,0.00017808,2]
[340547412,1729434655800,-1389.115012,0.00017808,2]
[340547413,1729434655809,-183.5,0.00017808,2]
[340547414,1729434655819,-203.678674,0.00017808,2]
[340547415,1729434655829,-203.678674,0.00017808,2]
[340547416,1729434655839,-203.678674,0.00017808,2]
[340547417,1729434655849,-203.678674,0.00017808,2]
[340547418,1729434655859,-203.678674,0.00017808,2]
[340547419,1729434655868,-203.678674,0.00017808,2]
[340547420,1729434655879,-203.678674,0.00017808,2]
[340547421,1729434655888,-203.678674,0.00017808,2]
[340547422,1729434655899,-203.678674,0.00017808,2]
[340547423,1729434655909,-203.678674,0.00017808,2]
[340547424,1729434655919,-203.678674,0.00017808,2]
[340547425,1729434655931,-203.678674,0.00017808,2]
[340547426,1729434655940,-203.678674,0.00017808,2]
[340547427,1729434655950,-203.678674,0.00017808,2]
[340547428,1729434655961,-203.678674,0.00017808,2]
[340547429,1729434655971,-203.678674,0.00017808,2]
[340547430,1729434655981,-270.0504608,0.000179,2]
[340547431,1729434655991,-270.0504608,0.000179,2]
[340547432,1729434656001,-150.112233,0.000179,2]
[340547433,1729434656011,-3271.0,0.00017957,2]
[340547434,1729434656021,-6638.27779568,0.00018,10]
[340547435,1729434656030,-184.0,0.00018,2]
[340547436,1729434656040,-5000.0,0.00018,2]
[340547437,1729434656051,-155.0,0.00018,30]
[340547438,1729434656062,-351.73,0.00018,2]
[340547439,1729434656074,-351.73,0.00018,2]
[340547440,1729434656084,-351.73,0.00018,2]
[340547441,1729434656094,-1005.241953,0.00018,2]
[340547442,1729434656104,-183.5,0.00018082,2]
[340547443,1729434656115,-3675.11069842,0.00018117,2]
[340547444,1729434656125,-151.0,0.00018136,2]
[340547445,1729434656134,-270.769812,0.00018136,2]
[340547446,1729434656144,-151.0,0.00018136,2]
[340547447,1729434656154,-151.0,0.00018136,2]
[340547448,1729434656164,-151.0,0.00018136,2]
[340547449,1729434656174,-151.0,0.00018136,2]
[340547450,1729434656184,-151.0,0.00018136,2]
[340547451,1729434656194,-232.134523,0.00018136,2]
[340547452,1729434656204,-232.134523,0.00018136,2]
[340547453,1729434656214,-706.297685,0.00018136,2]
[340547454,1729434656224,-706.297685,0.00018136,2]
[340547455,1729434656234,-238.650396,0.00018136,2]
[340547456,1729434656245,-238.650396,0.00018136,2]
[340547457,1729434656255,-2500.0,0.00018136,2]
[340547458,1729434656265,-2500.0,0.00018225,2]
[340547459,1729434656275,-256.49359143,0.00018349,2]
[340547460,1729434656286,-183.5,0.00018356,2]
[340547461,1729434656296,-300.308301,0.000184,7]
[340547462,1729434656306,-150.112233,0.000185,2]
[340547463,1729434656316,-1000.0,0.000185,2]
[340547464,1729434656325,-3271.0,0.00018505,2]
[340547465,1729434656335,-246.804703,0.00018591,2]
[340547466,1729434656345,-246.804703,0.00018591,2]
[340547467,1729434656355,-153.86384353,0.0001863,2]
[340547468,1729434656364,-374.026534,0.0001863,2]
[340547469,1729434656374,-374.026534,0.0001863,2]
[340547470,1729434656384,-239.868,0.0001863,2]
[340547471,1729434656394,-239.868,0.0001863,2]
[340547472,1729434656404,-151.0,0.0001863,2]
[340547473,1729434656414,-151.0,0.0001863,2]
[340547474,1729434656423,-151.0,0.0001863,2]
[340547475,1729434656433,-979.4,0.0001863,2]
[340547476,1729434656443,-151.0,0.0001863,2]
[340547477,1729434656452,-1352.87,0.0001863,2]
[340547478,1729434656461,-1352.87,0.0001863,4]
[340547479,1729434656473,-1352.87,0.0001863,6]
[340547480,1729434656483,-1352.87,0.0001863,8]
[340547481,1729434656494,-1352.87,0.0001863,10]
[340547482,1729434656505,-1352.87,0.0001863,12]
[340547483,1729434656515,-1352.87,0.0001863,14]
[340547484,1729434656524,-1352.87,0.0001863,16]
[340547485,1729434656535,-1352.87,0.0001863,18]
[340547486,1729434656546,-1352.87,0.0001863,20]
[340547487,1729434656556,-1352.87,0.0001863,22]
[340547488,1729434656566,-1352.87,0.0001863,24]
[340547489,1729434656576,-1352.87,0.0001863,26]
[340547490,1729434656586,-1352.87,0.0001863,28]
[340547491,1729434656596,-1352.87,0.0001863,30]
[340547492,1729434656607,-1352.87,0.0001863,32]
[340547493,1729434656617,-1352.87,0.0001863,34]
[340547494,1729434656627,-1352.87,0.0001863,36]
[340547495,1729434656638,-660.0835553,0.0001863,38]
[340547501,1729435076429,273.37336231,9.9e-05,2]
[340547502,1729435092875,273.37336231,9.9e-05,2]
[340547503,1729435109287,273.37336231,9.9e-05,2]
[340547506,1729435125816,273.37336231,9.9e-05,2]
[340547507,1729435141126,273.37336231,9.9e-05,2]
[340547508,1729435142852,150.5,0.00018969,120]
[340547509,1729435143464,150.5,0.00018959,120]
[340547510,1729435143958,150.5,0.00018949,120]
[340547512,1729435156404,273.37336231,9.9e-05,2]
[340547513,1729435172698,273.37336231,9.9e-05,2]
[340547514,1729435187974,273.37336231,9.9e-05,2]
[340547517,1729435261976,150.5,0.0001888,120]
[340547518,1729435263259,150.5,0.0001887,120]
[340547519,1729435263714,150.5,0.0001886,120]
[340547675,1729435832086,-250.0,0.00010959,2]
[340547676,1729435832098,-181.0,0.0001234,2]
[340547677,1729435832109,-527.0,0.00012762,2]
[340547678,1729435832119,-163.67701206,0.00012762,2]
[340547679,1729435832132,-1107.13598794,0.00012762,2]
[340547680,1729435832143,-1157.0,0.00012762,2]
[340547681,1729435832154,-300.0,0.00013497,2]
[340547682,1729435832164,-300.0,0.00013499,2]
[340547683,1729435832176,-1780.45,0.000135,2]
[340547684,1729435832188,-500.0,0.00013699,2]
[340547685,1729435832199,-500.0,0.00013699,2]
[340547686,1729435832210,-181.0,0.000141,2]
[340547687,1729435832221,-265.99915058,0.00014505,2]
[340547688,1729435832362,-1378.93204982,0.00014505,2]
[340547689,1729435832371,-190.0,0.00014652,2]
[340547690,1729435832382,-170.2161,0.0001471,2]
[340547691,1729435832395,-595.788871,0.00014715,2]
[340547692,1729435832409,-420.0,0.00014796,2]
[340547693,1729435832419,-38.40224647,0.00014806,2]
[340547694,1729435832433,-131.81385353,0.00014806,2]
[340547695,1729435832443,-1535.70962501,0.00014832,2]
[340547696,1729435832457,-1982.28228499,0.00014832,2]
[340547697,1729435832467,-170.2161,0.00014902,2]
[340547698,1729435832477,-2500.0,0.00014991,2]
[340547699,1729435832487,-170.2161,0.00014998,2]
[340547700,1729435832499,-2479.62232198,0.00015,2]
[340547738,1729435842148,-190.0,0.00014613,2]
[340547739,1729435842160,-20.37767802,0.00015,2]
[340547740,1729435842171,-971.46089641,0.00015,2]
[340547741,1729435842180,-23.33220633,0.00015093,2]
[340547759,1729435843188,-146.88389367,0.00015093,2]
[340547760,1729435843200,-170.2161,0.00015189,2]
[340547761,1729435843209,-170.2161,0.00015285,2]
[340547762,1729435843219,-170.2161,0.00015381,2]
[340547763,1729435843229,-595.788871,0.000154,2]
[340547765,1729435843238,-170.2161,0.00015477,2]
[340547766,1729435843248,-181.0,0.0001586,2]
[340547767,1729435843257,-595.788871,0.00016085,2]
[340547768,1729435843266,-587.0,0.00016219,2]
[340547769,1729435843276,-164.188,0.00016986,2]
[340547770,1729435843286,-250.0,0.00017592,2]
[340547771,1729435843296,-181.0,0.0001762,2]
[340547772,1729435843307,-823.0,0.00017777,2]
[340547773,1729435843316,-2000.0,0.00018,2]
[340547774,1729435843326,-153.0,0.00018434,2]
[340547775,1729435843336,-841.26134231,0.00018629,2]
[340547776,1729435843346,-151.0,0.0001863,2]
[340547777,1729435843356,-161.70980539,0.00018679,3]
[340547778,1729435843365,-589.22471744,0.00018779,2]
[340547779,1729435843375,-500.0,0.00018779,2]
[340547780,1729435843386,-500.0,0.00018779,2]
[340547781,1729435843397,-434.81311001,0.00018779,2]
[340547782,1729435843406,-500.0,0.00018779,2]
[340547783,1729435843416,-212.67700197,0.00018779,2]
[340547784,1729435843425,-500.0,0.00018779,2]
[340547785,1729435843436,-500.0,0.00018779,2]
[340547786,1729435843447,-500.0,0.00018779,2]
[340547787,1729435843456,-567.7836313,0.00018779,2]
[340547788,1729435843467,-500.0,0.00018779,2]
[340547789,1729435843476,-99.2798408,0.00018779,2]
[340547809,1729435884500,150.5,0.00018842,120]
[340547810,1729435884927,150.5,0.00018832,120]
[340547811,1729435885369,167.8,0.00018822,120]
[340547812,1729435910351,1192.4,0.00023,60]
[340547815,1729436074283,3803.16,0.00023,60]
[340547816,1729436113055,1000.0,0.00023,60]
[340547817,1729436540184,300.0,0.00023,60]
[340547818,1729436573288,155.0,0.00023,60]
[340547836,1729436643336,2000.0,0.00023,60]
[340547837,1729436703962,2642.86978018,0.00023,60]
[340547943,1729437040051,-250.0,0.00010959,2]
[340547944,1729437040060,-150.0,0.000119,2]
[340547945,1729437040070,-153.11,0.00012777,2]
[340547946,1729437040079,-535.187,0.00012777,2]
[340547947,1729437040088,-150.0,0.000129,2]
[340547948,1729437040097,-29.37604253,0.000135,2]
[340547949,1729437040129,-1169.62442848,0.000135,2]
[340547951,1729437040141,-519.83952899,0.000135,2]
[340547952,1729437040151,-500.0,0.00013699,2]
[340547953,1729437040160,-500.0,0.00013699,2]
[340547954,1729437040169,-150.0,0.000139,2]
[340547955,1729437040179,-150.0,0.000149,2]
[340547956,1729437040188,-143.04397325,0.00015199,2]
[340547957,1729437040199,-1014.04871239,0.00015199,2]
[340547974,1729437043245,-601.90326936,0.00015199,2]
[340547975,1729437043260,-198.59629,0.00015419,2]
[340547976,1729437043271,-150.0,0.00015777,2]
[340547977,1729437043284,-150.0,0.000159,2]
[340547978,1729437043294,-150.0,0.00016,2]
[340547979,1729437043304,-198.59629,0.00016104,2]
[340547980,1729437043315,-198.59629,0.00016789,2]
[340547981,1729437043326,-150.0,0.000169,2]
[340547982,1729437043336,-150.0,0.00017252,2]
[340547983,1729437043347,-250.0,0.00017592,2]
[340547984,1729437043357,-150.0,0.000179,2]
[340547985,1729437043368,-300.0,0.00017989,2]
[340547986,1729437043379,-300.0,0.0001799,2]
[340547987,1729437043390,-1000.0,0.00018,2]
[340547988,1729437043401,-1549.20921301,0.0001847,2]
[340547989,1729437043426,-3469.65996457,0.0001856,2]
[340548021,1729437245546,4349.27959526,0.000105,2]
[340548022,1729437257315,1745.0,0.00010403,2]
[340548023,1729437273997,986.0,0.00023,60]
[340548028,1729437556856,10000.0,0.00023,60]
[340548029,1729437573320,10000.0,0.000203,120]
[340548030,1729437590223,10000.0,0.0002,90]
[340548031,1729437599149,10000.0,0.00023,60]
[340548032,1729437604270,1100.0,0.00022,60]
[340548034,1729437756226,1000.0,0.00023,60]
[340548035,1729437763245,1000.0,0.00023,60]
[340548048,1729438122627,979.04871718,0.0002,120]
[340548050,1729438124014,150.0,2.75e-05,120]
[340548051,1729438129148,150.0,0.0002102,62]
[340548052,1729438129197,2070.69137846,0.00023,60]
[340548095,1729438232400,-5650.72040474,0.000105,2]